fUST/lending_fUST_20240620
["ID","MTS","AMOUNT","RATE_DAILY","PERIOD"]
[329983828,1718895043887,-500.0,0.00055616,120]
[329983829,1718895043900,-562.17,0.00055616,120]
[329983831,1718895043910,-500.0,0.00055616,120]
[329983832,1718895043919,-3442.82,0.00055616,120]
[329983834,1718895043929,-500.0,0.00055616,60]
[329983835,1718895043938,-500.0,0.00055616,120]
[329983836,1718895043948,-500.0,0.00055616,120]
[329983837,1718895043962,-500.0,0.00055616,120]
[329983838,1718895043971,-2300.62,0.00055616,120]
[329983839,1718895043981,-565.78,0.00055616,120]
[329983840,1718895043991,-500.0,0.00055616,120]
[329983841,1718895044001,-808.18,0.00055616,120]
[329983842,1718895044010,-500.0,0.00055616,120]
[329983843,1718895044019,-534.4427515,0.00055616,120]
[329983844,1718895044031,-500.0,0.00055616,120]
[329983845,1718895044040,-500.0,0.00055616,2]
[329983846,1718895044050,-1501.21,0.00055616,120]
[329983847,1718895044060,-40052.82425402,0.0005579,120]
[329983848,1718895044069,-2465.7,0.00055889,120]
[329983849,1718895044078,-500.0,0.00055889,120]
[329983850,1718895044087,-270.10198006,0.00055889,120]
[329983851,1718895044096,-818.48,0.0005589,120]
[329983852,1718895044107,-500.0,0.0005589,2]
[329983853,1718895044116,-500.0,0.0005589,2]
[329983854,1718895044126,-500.0,0.0005589,120]
[329983855,1718895044135,-500.0,0.0005589,120]
[329983856,1718895044145,-500.0,0.0005589,120]
[329983858,1718895044155,-500.0,0.0005589,120]
[329983859,1718895044165,-2847.21,0.0005589,120]
[329983861,1718895044175,-540.18,0.0005589,120]
[329983862,1718895044184,-500.0,0.0005589,120]
[329983863,1718895044194,-500.0,0.0005589,120]
[329983864,1718895044203,-500.0,0.0005589,120]
[329983865,1718895044213,-649.0902292,0.0005589,120]
[329983866,1718895044222,-500.0,0.0005589,120]
[329983867,1718895044233,-590.49,0.0005589,120]
[329983868,1718895044243,-1627.04,0.0005589,120]
[329983869,1718895044253,-500.0,0.0005589,120]
[329983870,1718895044262,-3993.87,0.0005589,120]
[329983871,1718895044272,-500.0,0.0005589,120]
[329983872,1718895044281,-670.75,0.0005589,120]
[329983873,1718895044291,-260.40153792,0.0005589,120]
[329983874,1718895044300,-500.0,0.0005589,120]
[329983875,1718895044309,-2035.39,0.0005589,120]
[329983876,1718895044319,-1275.26,0.0005589,21]
[329983877,1718895044328,-500.0,0.0005589,120]
[329983878,1718895044338,-500.0,0.0005589,120]
[329983879,1718895044347,-500.0,0.0005589,120]
[329983880,1718895044359,-500.0,0.0005589,120]
[329983881,1718895044369,-510.55,0.0005589,120]
[329983882,1718895044379,-2139.5,0.0005589,120]
[329983883,1718895044388,-500.0,0.0005589,120]
[329983884,1718895044398,-521.30615473,0.0005589,120]
[329983885,1718895044408,-749.57,0.0005589,120]
[329983886,1718895044418,-200.0,0.0005589,7]
[329983887,1718895044427,-500.0,0.0005589,120]
[329983888,1718895044437,-2156.34,0.0005589,120]
[329983889,1718895044446,-500.0,0.0005589,120]
[329983890,1718895044456,-500.0,0.0005589,120]
[329983891,1718895044465,-500.0,0.0005589,2]
[329983892,1718895044475,-514.54374782,0.0005589,120]
[329983893,1718895044489,-919.56,0.0005589,120]
[329983894,1718895044503,-500.0,0.0005589,120]
[329983895,1718895044516,-863.32,0.0005589,120]
[329983896,1718895044530,-634.83654616,0.0005589,120]
[329983897,1718895044542,-562.17,0.0005589,120]
[329983898,1718895044553,-3442.82,0.0005589,120]
[329983899,1718895044565,-500.0,0.0005589,120]
[329983900,1718895044577,-500.0,0.0005589,60]
[329983901,1718895044588,-500.0,0.0005589,120]
[329983902,1718895044600,-500.0,0.0005589,120]
[329983903,1718895044616,-2300.62,0.0005589,120]
[329983904,1718895044629,-565.78,0.0005589,120]
[329983905,1718895044640,-500.0,0.0005589,120]
[329983906,1718895044652,-808.18,0.0005589,120]
[329983907,1718895044666,-500.0,0.0005589,120]
[329983908,1718895044679,-500.0,0.0005589,120]
[329983909,1718895044691,-500.0,0.0005589,2]
[329983910,1718895044704,-1501.21,0.0005589,120]
[329983911,1718895044716,-1000.0,0.00055895,30]
[329983912,1718895044729,-2465.7,0.00056163,120]
[329983913,1718895044741,-818.48,0.00056164,120]
[329983914,1718895044754,-500.0,0.00056164,2]
[329983915,1718895044767,-500.0,0.00056164,120]
[329983916,1718895044779,-500.0,0.00056164,120]
[329983917,1718895044791,-500.0,0.00056164,120]
[329983918,1718895044803,-500.0,0.00056164,120]
[329983919,1718895044815,-2847.21,0.00056164,120]
[329983920,1718895044826,-540.18,0.00056164,120]
[329983921,1718895044839,-500.0,0.00056164,120]
[329983922,1718895044850,-500.0,0.00056164,120]
[329983923,1718895044865,-158.76974588,0.00056164,120]
[329983924,1718895044876,-590.49,0.00056164,120]
[329983925,1718895044888,-1627.04,0.00056164,120]
[329983926,1718895044900,-191.27459886,0.00056164,120]
[329983927,1718895044911,-3993.87,0.00056164,120]
[329983928,1718895044924,-500.0,0.00056164,120]
[329983929,1718895044938,-670.75,0.00056164,120]
[329983930,1718895044956,-500.0,0.00056164,120]
[329983931,1718895044968,-2035.39,0.00056164,120]
[329983932,1718895044980,-1275.26,0.00056164,21]
[329983933,1718895044991,-500.0,0.00056164,120]
[329983934,1718895045001,-500.0,0.00056164,120]
[329983935,1718895045012,-500.0,0.00056164,120]
[329983936,1718895045024,-510.55,0.00056164,120]
[329983937,1718895045036,-2139.5,0.00056164,120]
[329983938,1718895045049,-749.57,0.00056164,120]
[329983939,1718895045061,-200.0,0.00056164,7]
[329983940,1718895045072,-500.0,0.00056164,120]
[329983941,1718895045082,-2156.34,0.00056164,120]
[329983942,1718895045093,-500.0,0.00056164,120]
[329983943,1718895045106,-500.0,0.00056164,120]
[329983944,1718895045117,-500.0,0.00056164,2]
[329983945,1718895045128,-919.56,0.00056164,120]
[329983946,1718895045139,-500.0,0.00056164,120]
[329983947,1718895045149,-863.32,0.00056164,120]
[329983948,1718895045161,-562.17,0.00056164,120]
[329983949,1718895045172,-3442.82,0.00056164,120]
[329983950,1718895045182,-500.0,0.00056164,120]
[329983951,1718895045193,-500.0,0.00056164,60]
[329983952,1718895045204,-500.0,0.00056164,120]
[329983953,1718895045215,-500.0,0.00056164,120]
[329983954,1718895045225,-2300.62,0.00056164,120]
[329983955,1718895045235,-565.78,0.00056164,120]
[329983956,1718895045247,-523.03289321,0.00056164,120]
[329983957,1718895045259,-808.18,0.00056164,120]
[329983958,1718895045270,-500.0,0.00056164,120]
[329983959,1718895045281,-500.0,0.00056164,120]
[329983960,1718895045293,-500.0,0.00056164,2]
[329983961,1718895045303,-1501.21,0.00056164,120]
[329983962,1718895045315,-2465.7,0.00056437,120]
[329983963,1718895045326,-818.48,0.00056438,120]
[329983964,1718895045337,-500.0,0.00056438,2]
[329983965,1718895045347,-500.0,0.00056438,120]
[329983966,1718895045359,-500.0,0.00056438,120]
[329983967,1718895045370,-500.0,0.00056438,120]
[329983968,1718895045380,-500.0,0.00056438,120]
[329983969,1718895045391,-2847.21,0.00056438,120]
[329983970,1718895045403,-540.18,0.00056438,120]
[329983971,1718895045414,-500.0,0.00056438,120]
[329983972,1718895045424,-590.49,0.00056438,120]
[329983973,1718895045436,-1627.04,0.00056438,120]
[329983974,1718895045447,-3993.87,0.00056438,120]
[329983975,1718895045458,-169.43177386,0.00056438,120]
[329983976,1718895045469,-670.75,0.00056438,120]
[329983977,1718895045480,-500.0,0.00056438,120]
[329983978,1718895045491,-2035.39,0.00056438,120]
[329983979,1718895045503,-1275.26,0.00056438,21]
[329983980,1718895045515,-500.0,0.00056438,120]
[329983981,1718895045526,-500.0,0.00056438,120]
[329983982,1718895045536,-500.0,0.00056438,120]
[329983983,1718895045547,-510.55,0.00056438,120]
[329983984,1718895045558,-2139.5,0.00056438,120]
[329983985,1718895045568,-749.57,0.00056438,120]
[329983986,1718895045579,-200.0,0.00056438,7]
[329983987,1718895045590,-500.0,0.00056438,120]
[329983988,1718895045600,-2156.34,0.00056438,120]
[329983989,1718895045613,-500.0,0.00056438,120]
[329983990,1718895045624,-500.0,0.00056438,120]
[329983991,1718895045635,-500.0,0.00056438,2]
[329983992,1718895045646,-919.56,0.00056438,120]
[329983993,1718895045657,-151.0,0.00056438,120]
[329983994,1718895045777,-151.0,0.00056438,120]
[329983995,1718895045789,-500.0,0.00056438,120]
[329983996,1718895045800,-863.32,0.00056438,120]
[329983997,1718895045811,-562.17,0.00056438,120]
[329983998,1718895045823,-151.0,0.00056438,120]
[329983999,1718895045832,-3442.82,0.00056438,120]
[329984000,1718895045843,-500.0,0.00056438,120]
[329984001,1718895045852,-500.0,0.00056438,60]
[329984002,1718895045863,-500.0,0.00056438,120]
[329984003,1718895045872,-7499.998137,0.00056438,120]
[329984004,1718895045881,-500.0,0.00056438,120]
[329984005,1718895045890,-7499.998137,0.00056438,120]
[329984006,1718895045900,-2300.62,0.00056438,120]
[329984007,1718895045909,-565.78,0.00056438,120]
[329984008,1718895045918,-808.18,0.00056438,120]
[329984009,1718895045928,-500.0,0.00056438,120]
[329984010,1718895045938,-151.0,0.00056438,120]
[329984011,1718895045949,-500.0,0.00056438,120]
[329984012,1718895045963,-500.0,0.00056438,2]
[329984013,1718895045972,-1501.21,0.00056438,120]
[329984014,1718895045981,-160.0,0.00056596,3]
[329984015,1718895045991,-2465.7,0.00056711,120]
[329984016,1718895046001,-818.48,0.00056712,120]
[329984017,1718895046010,-500.0,0.00056712,2]
[329984018,1718895046020,-500.0,0.00056712,120]
[329984019,1718895046030,-500.0,0.00056712,120]
[329984020,1718895046041,-500.0,0.00056712,120]
[329984021,1718895046051,-500.0,0.00056712,120]
[329984022,1718895046060,-2847.21,0.00056712,120]
[329984023,1718895046069,-540.18,0.00056712,120]
[329984024,1718895046078,-417.09097599,0.00056712,120]
[329984025,1718895046088,-590.49,0.00056712,120]
[329984026,1718895046097,-1627.04,0.00056712,120]
[329984027,1718895046109,-151.0,0.00056712,120]
[329984028,1718895046118,-3993.87,0.00056712,120]
[329984029,1718895046127,-670.75,0.00056712,120]
[329984030,1718895046135,-500.0,0.00056712,120]
[329984031,1718895046144,-2035.39,0.00056712,120]
[329984032,1718895046154,-1275.26,0.00056712,21]
[329984033,1718895046163,-500.0,0.00056712,120]
[329984034,1718895046172,-500.0,0.00056712,120]
[329984035,1718895046181,-500.0,0.00056712,120]
[329984036,1718895046190,-510.55,0.00056712,120]
[329984037,1718895046199,-2139.5,0.00056712,120]
[329984038,1718895046208,-749.57,0.00056712,120]
[329984039,1718895046218,-200.0,0.00056712,7]
[329984040,1718895046227,-500.0,0.00056712,120]
[329984041,1718895046237,-2156.34,0.00056712,120]
[329984042,1718895046245,-500.0,0.00056712,120]
[329984043,1718895046257,-500.0,0.00056712,120]
[329984044,1718895046266,-403.82542471,0.00056712,2]
[329984045,1718895046275,-919.56,0.00056712,120]
[329984046,1718895046284,-500.0,0.00056712,120]
[329984047,1718895046294,-863.32,0.00056712,120]
[329984048,1718895046303,-562.17,0.00056712,120]
[329984049,1718895046313,-3442.82,0.00056712,120]
[329984050,1718895046323,-500.0,0.00056712,120]
[329984052,1718895046332,-500.0,0.00056712,60]
[329984054,1718895046342,-500.0,0.00056712,120]
[329984056,1718895046351,-500.0,0.00056712,120]
[329984058,1718895046361,-2300.62,0.00056712,120]
[329984059,1718895046370,-565.78,0.00056712,120]
[329984061,1718895046379,-808.18,0.00056712,120]
[329984063,1718895046389,-500.0,0.00056712,120]
[329984065,1718895046398,-500.0,0.00056712,120]
[329984067,1718895046407,-500.0,0.00056712,2]
[329984069,1718895046417,-1501.21,0.00056712,120]
[329984071,1718895046426,-8866.0,0.000568,120]
[329984073,1718895046436,-41283.57,0.000568,120]
[329984075,1718895046445,-151.0,0.000568,120]
[329984077,1718895046455,-151.0,0.000568,120]
[329984079,1718895046463,-151.0,0.000568,120]
[329984081,1718895046472,-151.0,0.000568,120]
[329984083,1718895046481,-269.673887,0.000568,120]
[329984085,1718895046491,-2465.7,0.00056985,120]
[329984087,1718895046500,-818.48,0.00056986,120]
[329984089,1718895046509,-500.0,0.00056986,2]
[329984090,1718895046519,-500.0,0.00056986,120]
[329984092,1718895046529,-500.0,0.00056986,120]
[329984094,1718895046538,-500.0,0.00056986,120]
[329984096,1718895046548,-500.0,0.00056986,120]
[329984098,1718895046557,-2847.21,0.00056986,120]
[329984100,1718895046567,-540.18,0.00056986,120]
[329984102,1718895046576,-151.0,0.00056986,120]
[329984104,1718895046587,-152.348545,0.00056986,60]
[329984106,1718895046596,-590.49,0.00056986,120]
[329984108,1718895046608,-1627.04,0.00056986,120]
[329984110,1718895046617,-3993.87,0.00056986,120]
[329984112,1718895046627,-670.75,0.00056986,120]
[329984114,1718895046636,-500.0,0.00056986,120]
[329984116,1718895046646,-2035.39,0.00056986,120]
[329984118,1718895046655,-1275.26,0.00056986,21]
[329984120,1718895046665,-500.0,0.00056986,120]
[329984122,1718895046674,-500.0,0.00056986,120]
[329984124,1718895046684,-300.43009125,0.00056986,120]
[329984126,1718895046693,-510.55,0.00056986,120]
[329984128,1718895046702,-2139.5,0.00056986,120]
[329984129,1718895046712,-749.57,0.00056986,120]
[329984130,1718895046721,-305.3566708,0.00056986,7]
[329984131,1718895046731,-500.0,0.00056986,120]
[329984132,1718895046741,-2156.34,0.00056986,120]
[329984133,1718895046750,-500.0,0.00056986,120]
[329984134,1718895046760,-500.0,0.00056986,120]
[329984135,1718895046770,-919.56,0.00056986,120]
[329984136,1718895046780,-151.0,0.00056986,120]
[329984137,1718895046789,-500.0,0.00056986,120]
[329984138,1718895046799,-863.32,0.00056986,120]
[329984139,1718895046809,-562.17,0.00056986,120]
[329984140,1718895046819,-151.0,0.00056986,120]
[329984141,1718895046830,-3442.82,0.00056986,120]
[329984142,1718895046840,-500.0,0.00056986,120]
[329984143,1718895046850,-500.0,0.00056986,60]
[329984144,1718895046863,-500.0,0.00056986,120]
[329984146,1718895046872,-7499.998137,0.00056986,120]
[329984148,1718895046885,-500.0,0.00056986,120]
[329984150,1718895046895,-7499.998137,0.00056986,120]
[329984151,1718895046904,-2300.62,0.00056986,120]
[329984153,1718895046913,-565.78,0.00056986,120]
[329984155,1718895046924,-808.18,0.00056986,120]
[329984157,1718895046934,-500.0,0.00056986,120]
[329984159,1718895046946,-500.0,0.00056986,120]
[329984160,1718895046956,-151.0,0.00056986,120]
[329984162,1718895046966,-500.0,0.00056986,120]
[329984164,1718895046975,-500.0,0.00056986,120]
[329984165,1718895046984,-500.0,0.00056986,120]
[329984166,1718895046994,-500.0,0.00056986,120]
[329984167,1718895047003,-500.0,0.00056986,120]
[329984168,1718895047013,-500.0,0.00056986,120]
[329984169,1718895047023,-500.0,0.00056986,120]
[329984170,1718895047036,-500.0,0.00056986,120]
[329984171,1718895047046,-500.0,0.00056986,120]
[329984172,1718895047055,-500.0,0.00056986,120]
[329984173,1718895047064,-500.0,0.00056986,120]
[329984174,1718895047073,-500.0,0.00056986,120]
[329984175,1718895047083,-500.0,0.00056986,120]
[329984176,1718895047092,-495.75403899,0.00056986,120]
[329984177,1718895047103,-500.0,0.00056986,120]
[329984178,1718895047116,-500.0,0.00056986,2]
[329984179,1718895047125,-1501.21,0.00056986,120]
[329984180,1718895047135,-500.0,0.0005708,43]
[329984181,1718895047144,-163.71124378,0.00057229,120]
[329984182,1718895047153,-2465.7,0.00057259,120]
[329984183,1718895047163,-818.48,0.0005726,120]
[329984184,1718895047172,-500.0,0.0005726,2]
[329984185,1718895047182,-187.581081,0.0005726,120]
[329984186,1718895047191,-500.0,0.0005726,120]
[329984187,1718895047202,-500.0,0.0005726,120]
[329984188,1718895047212,-500.0,0.0005726,120]
[329984189,1718895047222,-500.0,0.0005726,120]
[329984190,1718895047231,-2847.21,0.0005726,120]
[329984191,1718895047240,-540.18,0.0005726,120]
[329984192,1718895047250,-234.25879,0.0005726,120]
[329984193,1718895047259,-590.49,0.0005726,120]
[329984194,1718895047269,-1627.04,0.0005726,120]
[329984195,1718895047278,-151.0,0.0005726,120]
[329984196,1718895047288,-3993.87,0.0005726,120]
[329984197,1718895047297,-151.0,0.0005726,120]
[329984198,1718895047307,-670.75,0.0005726,120]
[329984199,1718895047316,-500.0,0.0005726,120]
[329984200,1718895047326,-2035.39,0.0005726,120]
[329984201,1718895047335,-1275.26,0.0005726,21]
[329984202,1718895047345,-500.0,0.0005726,120]
[329984203,1718895047357,-510.55,0.0005726,120]
[329984204,1718895047366,-2139.5,0.0005726,120]
[329984205,1718895047376,-749.57,0.0005726,120]
[329984206,1718895047386,-500.0,0.0005726,120]
[329984207,1718895047395,-2156.34,0.0005726,120]
[329984208,1718895047405,-500.0,0.0005726,120]
[329984209,1718895047414,-500.0,0.0005726,120]
[329984210,1718895047424,-919.56,0.0005726,120]
[329984211,1718895047433,-500.0,0.0005726,120]
[329984212,1718895047443,-863.32,0.0005726,120]
[329984213,1718895047452,-562.17,0.0005726,120]
[329984214,1718895047462,-3442.82,0.0005726,120]
[329984215,1718895047471,-500.0,0.0005726,120]
[329984216,1718895047481,-500.0,0.0005726,60]
[329984217,1718895047490,-500.0,0.0005726,120]
[329984218,1718895047499,-500.0,0.0005726,120]
[329984219,1718895047509,-2300.62,0.0005726,120]
[329984220,1718895047519,-565.78,0.0005726,120]
[329984221,1718895047529,-808.18,0.0005726,120]
[329984222,1718895047539,-500.0,0.0005726,120]
[329984223,1718895047548,-500.0,0.0005726,120]
[329984224,1718895047558,-500.0,0.0005726,2]
[329984225,1718895047567,-4356.03655645,0.00057414,120]
[329984226,1718895047733,-960.49,0.00054784,3]
[329984227,1718895047743,-13331.14,0.00054794,120]
[329984228,1718895047846,-2679.78937814,0.00054794,120]
[329984248,1718896025170,-161.631105,0.00021096,2]
[329984249,1718896025190,-1000.0,0.000276,2]
[329984250,1718896025209,-777.98064916,0.00037996,2]
[329984251,1718896025231,-147.58060238,0.00040607,2]
[329984252,1718896034155,-29.80657562,0.00040607,2]
[329984253,1718896034176,-153.0,0.00041053,2]
[329984254,1718896034197,-153.0,0.00041053,2]
[329984255,1718896034219,-153.0,0.00041054,2]
[329984256,1718896034240,-166.852139,0.00041842,2]
[329984257,1718896034264,-163.0,0.00047,90]
[329984258,1718896034286,-166.852139,0.00047546,2]
[329984259,1718896034308,-163.0,0.00048904,90]
[329984260,1718896034329,-446.0,0.00049314,5]
[329984261,1718896034349,-500.0,0.00049315,120]
[329984262,1718896034369,-165.0,0.00051349,120]
[329984263,1718896034391,-3762.10383428,0.00053,30]
[329984264,1718896034411,-1389.42884423,0.00054694,28]
[329984265,1718896034432,-499.4186293,0.00054784,3]
[329984266,1718896054104,-300.9913707,0.00054784,3]
[329984267,1718896054126,-196.81819979,0.00054784,3]
[329984287,1718896224741,516.34,0.00026,60]
[329984303,1718896232995,-162.68460589,0.00034892,7]
[329984304,1718896233005,-162.68460589,0.00036712,7]
[329984306,1718896233015,-162.68460589,0.00038451,7]
[329984308,1718896233025,-250.0,0.00040084,2]
[329984310,1718896233034,-162.68460589,0.00041474,30]
[329984312,1718896233044,-166.759403,0.00042699,2]
[329984314,1718896233053,-178.270507,0.00042804,2]
[329984315,1718896233062,-330.6061047,0.00044199,2]
[329984317,1718896233071,-166.759403,0.00048519,2]
[329984318,1718896233081,-162.68460589,0.00050641,60]
[329984319,1718896233090,-162.68460593,0.00050643,60]
[329984320,1718896233099,-435.6214843,0.00052594,4]
[329984321,1718896233108,-2000.0,0.00054,120]
[329984322,1718896233117,-577.95,0.0005429,3]
[329984323,1718896233127,-263.68097244,0.00054299,120]
[329984324,1718896233137,-417.97482389,0.00054299,7]
[329984325,1718896233147,-4594.49,0.00054299,7]
[329984326,1718896233156,-4594.49,0.00054299,7]
[329984327,1718896233165,-10580.35691024,0.000543,120]
[329984328,1718896233177,-260.12980989,0.000543,120]
[329984329,1718896233188,-6494.1268145,0.000543,120]
[329984330,1718896233199,-650.26151516,0.000543,120]
[329984331,1718896233211,-23298.69495021,0.000543,120]
[329984332,1718896233221,-8866.0,0.000543,120]
[329984333,1718896233233,-3126.54807171,0.000543,120]
[329984351,1718896240562,-1298.19586907,0.0002802,120]
[329984355,1718896240576,-3701.80413093,0.0002802,120]
[329984357,1718896240586,-69.76116188,0.000543,120]
[329984371,1718896241061,-47229.42683936,0.000543,120]
[329984373,1718896241071,-1215.75023871,0.00054694,28]
[329984375,1718896241080,-337.51,0.00054784,3]
[329984377,1718896241090,-481.62,0.00054784,3]
[329984380,1718896241099,-298.14077914,0.00054794,120]
[329984383,1718896241109,-500.0,0.00054794,120]
[329984386,1718896241118,-443.29839865,0.00054794,120]
[329984388,1718896241128,-500.0,0.00054794,120]
[329984391,1718896241138,-569.13777399,0.00054794,120]
[329984394,1718896241147,-500.0,0.00054794,120]
[329984396,1718896241158,-156.10776371,0.00054794,120]
[329984398,1718896241168,-507.30382136,0.00054794,120]
[329984400,1718896241177,-500.0,0.00054794,120]
[329984401,1718896241186,-500.83141582,0.00054794,120]
[329984403,1718896241196,-500.98958676,0.00054794,2]
[329984405,1718896241205,-500.0,0.00054794,120]
[329984407,1718896241215,-324.76054633,0.00054794,120]
[329984409,1718896241225,-500.0,0.00054794,120]
[329984410,1718896241234,-500.0,0.00054794,2]
[329984412,1718896241244,-500.0,0.00054794,120]
[329984414,1718896241253,-500.0,0.00054794,120]
[329984415,1718896241263,-500.0,0.00054794,120]
[329984416,1718896241272,-508.24146568,0.00054794,120]
[329984417,1718896241282,-1897.85,0.00054794,120]
[329984418,1718896241291,-957.68,0.00054794,120]
[329984419,1718896241301,-541.63808912,0.00054794,120]
[329984420,1718896241310,-500.0,0.00054794,120]
[329984421,1718896241320,-500.0,0.00054794,120]
[329984422,1718896241329,-500.0,0.00054794,120]
[329984423,1718896241339,-500.0,0.00054794,120]
[329984424,1718896241349,-500.0,0.00054794,120]
[329984425,1718896241359,-500.0,0.00054794,120]
[329984426,1718896241373,-500.0,0.00054794,120]
[329984427,1718896241383,-500.0,0.00054794,120]
[329984428,1718896241392,-500.0,0.00054794,120]
[329984429,1718896241405,-500.0,0.00054794,120]
[329984430,1718896241414,-500.0,0.00054794,120]
[329984431,1718896241424,-500.0,0.00054794,120]
[329984432,1718896241433,-200.0,0.00054794,7]
[329984433,1718896241442,-500.0,0.00054794,120]
[329984434,1718896241455,-500.0,0.00054794,120]
[329984435,1718896241465,-500.0,0.00054794,120]
[329984436,1718896241474,-500.0,0.00054794,120]
[329984437,1718896241484,-500.0,0.00054794,120]
[329984438,1718896241492,-550.89659952,0.00054794,120]
[329984439,1718896241502,-500.0,0.00054794,120]
[329984440,1718896241511,-500.0,0.00054794,120]
[329984441,1718896241521,-500.0,0.00054794,120]
[329984442,1718896241530,-500.0,0.00054794,120]
[329984443,1718896241540,-500.0,0.00054794,120]
[329984444,1718896241549,-500.0,0.00054794,120]
[329984445,1718896241558,-500.0,0.00054794,120]
[329984446,1718896241568,-500.0,0.00054794,20]
[329984447,1718896241577,-500.0,0.00054794,120]
[329984448,1718896241587,-500.0,0.00054794,120]
[329984449,1718896241596,-500.0,0.00054794,120]
[329984451,1718896241605,-500.0,0.00054794,120]
[329984452,1718896241615,-500.0,0.00054794,120]
[329984453,1718896241624,-501.90321206,0.00054794,120]
[329984454,1718896241634,-500.20695392,0.00054794,120]
[329984455,1718896241643,-500.0,0.00054794,120]
[329984456,1718896241653,-500.0,0.00054794,120]
[329984457,1718896241666,-500.0,0.00054794,120]
[329984458,1718896241675,-500.0,0.00054794,120]
[329984459,1718896241685,-500.0,0.00054794,120]
[329984460,1718896241694,-500.0,0.00054794,120]
[329984461,1718896241706,-500.0,0.00054794,120]
[329984462,1718896241716,-502.73501367,0.00054794,120]
[329984463,1718896241725,-500.0,0.00054794,120]
[329984464,1718896241735,-511.67660844,0.00054794,120]
[329984465,1718896241744,-459.84823658,0.00054794,120]
[329984466,1718896241754,-500.0,0.00054794,120]
[329984467,1718896241763,-214.95505878,0.00054794,120]
[329984468,1718896241773,-264.40857223,0.00054794,120]
[329984469,1718896241782,-500.0,0.00054794,120]
[329984470,1718896241791,-500.0,0.00054794,60]
[329984471,1718896241801,-500.0,0.00054794,120]
[329984472,1718896241811,-500.0,0.00054794,120]
[329984473,1718896241820,-500.0,0.00054794,120]
[329984474,1718896241830,-505.24551806,0.00054794,120]
[329984475,1718896241839,-502.84122606,0.00054794,2]
[329984476,1718896241848,-500.0,0.00054794,120]
[329984477,1718896241858,-1016.9,0.00054794,120]
[329984478,1718896241867,-500.0,0.00054794,120]
[329984479,1718896241877,-500.0,0.00054794,120]
[329984480,1718896241886,-509.98399029,0.00054794,120]
[329984481,1718896241896,-504.57945437,0.00054794,120]
[329984482,1718896241909,-500.0,0.00054794,120]
[329984483,1718896241919,-172.43575819,0.00054794,120]
[329984484,1718896241929,-363.01289066,0.00054794,120]
[329984485,1718896241938,-500.0,0.00054794,120]
[329984486,1718896241948,-298.31640763,0.00054794,120]
[329984487,1718896241957,-500.0,0.00054794,120]
[329984488,1718896241967,-508.20854798,0.00054794,120]
[329984489,1718896241976,-500.0,0.00054794,120]
[329984490,1718896241986,-642.48336699,0.00054794,120]
[329984491,1718896241995,-500.0,0.00054794,120]
[329984492,1718896242005,-500.0,0.00054794,120]
[329984493,1718896242014,-500.0,0.00054794,120]
[329984494,1718896242024,-503.34665111,0.00054794,120]
[329984495,1718896242034,-503.74802448,0.00054794,120]